{"text_format":"1","workbook":"xlsx","n_sheets":5,"sheets":["Guida Informazioni Richieste","Inserimento","Fattura Compilata","Calc_Sht","Stati della Fattura"],"not_rendered":{"charts":0,"images":9,"macros":1,"external_links":0,"defined_names":4,"comments":1,"pivot_tables":1},"unopened":[],"bounds":{"document_bytes":16777216,"sheet_cells":100000,"rows_first":2000,"rows_last":500,"rows_between":2000,"halvings":0,"cell_chars":16384,"cell_head_chars":4096},"cells_cut":0,"cells_raw":0,"read":"whole","date_system":"1900"}

{"sheet":"Guida Informazioni Richieste","index":0,"n_rows":57,"n_cols":5,"rows_kept":57,"cut":false,"hidden":false,"merged":[[10,1,10,4]]}
[]
[]
[null,"www.digithera.it"]
[]
[null,"QUESTE INFORMAZIONI SONO NECESSARIE, QUALORA OBBLIGATORIE PER LA GENERAZIONE DELLA FATTURA SDI"]
[]
[null,"LA COMPILAZIONE DI QUESTE INFORMAZIONI DEVE AVENIRE NELLA SEZIONE \"Dati Integrativi per XML SDI\" NELLA PROPRIA AREA RISERVATA IN WWW.DIGITHERA.IT"]
[]
[null,"ATTENZIONE : SE LE INFORMAZIONI OBBLIGATORIE NON SONO PRESENTI NELLA PROPRIA AREA RISERVATA LA FATTURA POTREBBE NON ESSERE INVIATA O SCARTATA"]
[]
[null,"PROFESSIONISTI"]
[]
[]
[null,"SEZIONE","CAMPO","OBBLIGATORIO","COMMENTO"]
[]
[null,"ANAGRAFICA"]
[null,null,"NOME","SI"]
[null,null,"COGNOME","SI"]
[null,null,"PARTITA IVA","SI","Se non si dispone di una partita IVA, NON VA INVIATA una fattura elettronica, verrebbe scartata da SdI."]
[null,null,"CODICE FISCALE","SI"]
[]
[null,"SEDE"]
[null,null,"INDIRIZZO (incluso Numero)","SI"]
[null,null,"Comune","SI"]
[null,null,"CAP","SI"]
[null,null,"PROVINCIA","SI"]
[null,null,"NAZIONE","SI"]
[]
[null,"CONTATTO PER FATTURAZIONE ELETTRONICA"]
[null,null,"PEC INVIO FATTURE","SI","Richiesta dalla PA per eventuali comunicazioni"]
[]
[null,"DATI FISCALI"]
[null,null,"REGIME FISCALE","SI","Selezionare da un menù a tendina"]
[null,null,"ESIGIBILITA' IVA","SI","Selezionare da un menù a tendina, generalmente immediata a meno di particolari concessioni"]
[]
[null,"CASSA PREVIDENZIALE"]
[null,null,"TIPO CASSA","NO","Selezionare da un menu a tendina di 22 scelte la propria cassa, solo se la quota va inserita in fattura"]
[null,null,"ALIQUOTA","NO","Aliquota da corrispondere alla propria cassa"]
[null,null,"IVA","NO","Aliquota tipicamente inserita in Fattura. Si può cambiare in fattura."]
[null,null,"NATURA","NO","Da selezionare da un menu a tendina se IVA = 0, anche nella fattura stessa"]
[null,null,"RIFERIMENTO NORMATIVO","NO","Da inserire, a testo libero,  se IVA = 0 per qualificare la natura dell'esenzione"]
[]
[null,"RITENUTA FISCALE"]
[null,null,"TIPO RITENUTA","SI","Selezionare se Persona Giuridica o Persona Fisica"]
[null,null,"CAUSALE PAGAMENTO","SI","Scegliere da un menu a tendina di 24 voci"]
[null,null,"ALIQUOTA RITENUTA","SI","Aliquota di ritenuta da inserire in fattura"]
[]
[null,"SEZIONALE IVA"]
[null,null,"DESCRIZIONE","SI","Descrive il Sezionale Specifico per le Fatture Elettroniche alla PA (es. Fatture Elettroniche PA)"]
[null,null,"ANNO","SI","Definisce l'anno di registrazione contabile"]
[null,null,"MINIMO","SI","Se si scegli un intervallo separato indicare il numero di partenza (es. 100000). Altrimenti si inserisca 1."]
[null,null,"MASSIMO","SI","Se si scegli un intervallo separato indicare il numero di presunta fine (es. 110000). Altrimenti si inserisca il numero di fatture stimate in un anno."]
[null,null,"PREFISSO","NO","Se si sceglie un intervallo separato o un suffisso lasciare vuoto. Altrimenti inserire tutto il blocco pre-numero (es. PA/)"]
[null,null,"SUFFISSO","NO","Se si sceglie un intervallo separato o un prefisso si può anche lasciare vuoto. Altrimenti inserire tutto il blocco post numero (es. /PA)"]
[]
[]
[null,"Rev7_5_1_21"]

{"sheet":"Inserimento","index":1,"n_rows":42,"n_cols":24,"rows_kept":42,"cut":false,"hidden":false,"merged":[[41,3,45,6],[12,9,15,9],[3,2,3,3],[3,5,3,6],[19,5,19,6],[3,8,3,18],[12,8,15,8],[12,10,15,10],[12,11,15,11],[12,12,15,12],[12,13,15,13],[12,14,15,14],[20,10,23,10],[20,11,23,11],[20,12,23,12],[32,2,32,3],[16,9,19,9],[22,2,22,3],[20,9,23,9],[16,8,19,8],[24,5,24,6],[20,5,20,6],[8,10,11,10],[8,11,11,11],[8,12,11,12],[8,13,11,13],[8,8,11,8],[8,9,11,9],[8,14,11,14],[8,15,11,15],[8,16,11,16],[8,17,11,17],[8,18,11,18],[12,15,15,15],[12,16,15,16],[12,17,15,17],[12,18,15,18],[16,10,19,10],[16,11,19,11],[16,12,19,12],[16,13,19,13],[16,15,19,15],[16,14,19,14],[16,16,19,16],[16,17,19,17],[16,18,19,18],[24,15,27,15],[24,16,27,16],[24,17,27,17],[24,18,27,18],[20,13,23,13],[20,14,23,14],[20,15,23,15],[20,16,23,16],[20,17,23,17],[24,10,27,10],[24,11,27,11],[24,12,27,12],[24,13,27,13],[24,14,27,14],[28,18,31,18],[1,2,1,18],[28,13,31,13],[28,14,31,14],[28,15,31,15],[28,16,31,16],[28,17,31,17],[28,8,31,8],[28,9,31,9],[28,10,31,10],[28,11,31,11],[28,12,31,12],[20,18,23,18],[20,8,23,8],[24,8,27,8],[24,9,27,9]]}
[null,null,null,null,null,null,null,null,null,null,null,null,null,null,null,null,null,null,null,null,null,{"$f":"J9&J13&J17&J21&J25&J29","v":""}]
[null,null,"Professionista con una sola cassa previdenziale o gestione separata INPS (Modello Digithera SP2_14)"]
[]
[null,null,"La mia Anagrafica (integrata dalle info in www.digithera.it richieste per Fattura PA)",null,null,"L'Anagrafica del Mio Cliente",null,null,{"$f":"\"Corpo della \"&D25","v":"Corpo della Fattura"},null,null,null,null,null,null,null,null,null,null,null,null,"Pagamento","Casse Previdenziali","Natura"]
[null,null,null,null,null,null,null,null,"Compilare SOLO le righe necessarie, partendo dalla 1",null,null,null,null,null,null,null,null,null,null,null,null,"Bonifico","Cassa autonoma assistenza integrativa giornalisti italiani (CASAGIT)"]
[null,null,"Titolo",null,null,"Denominazione",null,null,null,null,null,null,null,null,null,null,null,null,null,null,null,"Contanti","Cassa nazionale del notariato","N1  escluse ex art. 15"]
[null,null,"Cognome",null,null,"Indirizzo",null,null,"Pos","Descrizione","Quantità","Unità di Misura","Prezzo Unitario","Imponibile","IVA %","Natura Esenzione IVA","Riferimento Normativo",{"$f":"IF(D19=\"NO\",\"Applicazione Cassa Previdenziale\",\"Applicazione Gestione Separata \")","v":"Applicazione Cassa Previdenziale"},"Ritenuta di Acconto %",null,null,"Assegno","Cassa nazionale previdenza e assistenza avvocati e procuratori legali ","N2.1  non soggette ad IVA art 7"]
[null,null,"Nome",null,null,"N.r Civico",null,null,null,null,null,null,null,null,null,null,null,null,null,null,null,"Assegno Bancario","Cassa nazionale previdenza e assistenza ingegneri e architetti liberi professionisti","N2.2  non soggette - altri casi"]
[null,"X","Specializzazione",null,null,"Comune",null,null,1,null,null,null,null,{"$f":"K9*M9","v":0},null,null,null,null,null,null,null,"Assegno Circolare","Cassa nazionale previdenza e assistenza ragionieri e periti commerciali","N3.1  non imponibili - esportazioni"]
[null,null,"Indirizzo",null,null,"CAP",null,null,null,null,null,null,null,null,null,null,null,null,null,null,null,"Bollettino bancario","Cassa previdenza dottori commercialisti","N3.2  non imponibili - cessioni intra"]
[null,null,"N.r Civico",null,null,"Provincia",null,null,null,null,null,null,null,null,null,null,null,null,null,null,null,"Carta Credito","Cassa previdenza e assistenza geometri","N3.3  non imponibili - cessioni San Marino"]
[null,null,"Comune",null,null,"Partita IVA",null,null,null,null,null,null,null,null,null,null,null,null,null,null,null,"RID","Ente nazionale assistenza agenti e rappresentanti di commercio (ENASARCO)","N3.4  non imponibili - operazioni assimilate"]
[null,null,"CAP",null,null,"Cod. Fisc.",null,null,2,null,null,null,null,{"$f":"K13*M13","v":0},null,null,null,null,null,null,null,"RID Utenze","Ente nazionale previdenza e assistenza biologi (ENPAB)","N3.5  non imponibili - post dich. d'intento"]
[null,null,"Provincia (Sigla)",null,null,null,null,null,null,null,null,null,null,null,null,null,null,null,null,null,null,"RID Veloce","Ente nazionale previdenza e assistenza consulenti del lavoro (ENPACL)","N3.6  non imponibili - altre operazioni"]
[null,"X","PEC Personale",null,null,"Codice Destinatario",null,null,null,null,null,null,null,null,null,null,null,null,null,null,null,"RIBA","Ente nazionale previdenza e assistenza farmacisti (ENPAF)","N4  esenti"]
[null,null,"Sito Web",null,null,"PEC Fatturaz. Elettronica",null,null,null,null,null,null,null,null,null,null,null,null,null,null,null,"MAV","Ente nazionale previdenza e assistenza impiegati dell'agricoltura (ENPAIA)","N5  regime del margine / IVA non esposta"]
[null,"X","Cod. Fisc.",null,null,null,null,null,3,null,null,null,null,{"$f":"K17*M17","v":0},null,null,null,null,null,null,null,"Rimessa Diretta","Ente nazionale previdenza e assistenza medici (ENPAM)","N6.1  inversione contabile - cessione di rottami"]
[null,null,"Partita IVA",null,null,null,null,null,null,null,null,null,null,null,null,null,null,null,null,null,null,"Domiciliazione Postale","Ente nazionale previdenza e assistenza professione infermieristica (ENPAPI)","N6.2  inversione contabile - cessione metalli preziosi"]
[null,null,"Gestione Separata INPS","NO",null,null,null,null,null,null,null,null,null,null,null,null,null,null,null,null,null,"Altro","Ente nazionale previdenza e assistenza psicologi (ENPAP)","N6.3  inversione contabile - subappalto edile"]
[null,null,"Cassa Previdenziale",null,null,"Riferimento Amministrazione (INPS)",null,null,null,null,null,null,null,null,null,null,null,null,null,null,null,null,"Ente nazionale previdenza e assistenza veterinari (ENPAV)","N6.4  inversione contabile - cessione di fabbricati"]
[null,null,"Aliquota  Cassa Previd. %",null,null,null,null,null,4,null,null,null,null,{"$f":"K21*M21","v":0},null,null,null,null,null,null,null,null,"Ente previdenza e assistenza pluricategoriale (EPAP)","N6.5  inversione contabile - cessione di cellulari"]
[null,null,null,null,null,null,null,null,null,null,null,null,null,null,null,null,null,null,null,null,null,null,"Ente previdenza periti industriali e periti industriali laureati (EPPI)","N6.6  inversione contabile - cessione di prod elettr"]
[null,null,"Il Mio Documento Fiscale",null,null,null,null,null,null,null,null,null,null,null,null,null,null,null,null,null,null,null,"Fondo previdenza impiegati imprese di spedizione e agenzie marittime","N6.7  inversione contabile - prestazioni edili"]
[null,null,null,null,null,null,null,null,null,null,null,null,null,null,null,null,null,null,null,null,null,null,"INPS","N6.8  inversione contabile - operazioni energetico"]
[null,null,"Tipo Documento","Fattura",null,null,null,null,5,null,null,null,null,{"$f":"K25*M25","v":0},null,null,null,null,null,null,null,null,"Istituto nazionale previdenza giornalisti italiani (INPGI)","N6.9  inversione contabile - altri casi"]
[null,null,null,null,null,null,null,null,null,null,null,null,null,null,null,null,null,null,null,null,null,null,null,"N7  IVA assolta in altro stato UE"]
[null,null,{"$f":"\"Data \"&D25","v":"Data Fattura"}]
[null,null,null,null,null,"Modalità di Pagamento"]
[null,null,{"$f":"\"Numero \"&D25","v":"Numero Fattura"},null,null,null,null,null,6,null,null,null,null,{"$f":"K29*M29","v":0}]
[null,null,null,null,null,{"$f":"\"Scadenza \"&D25","v":"Scadenza Fattura"}]
[null,null,null,{"$f":"IF(ISERROR(D29*1),\"Il Sezionale Sembra corretto\",\"Attenzione al Sezionale IVA Separato\")","v":"Attenzione al Sezionale IVA Separato"}]
[null,null,null,null,null,"Banca di Appoggio"]
[null,null,"Le Attività per cui emetto Fattura"]
[null,null,null,null,null,"IBAN"]
[null,null,"Riferimento Altro Documento"]
[null,null,{"$f":"\"# Documento \"&D35","v":"# Documento "}]
[null,null,{"$f":"\"Data \"&D35","v":"Data "}]
[null,null,"Codice CIG"]
[null,null,"Codice CUP"]
[]
[]
[null,null,"Eventuali Note o Causale"]

{"sheet":"Fattura Compilata","index":2,"n_rows":72,"n_cols":10,"rows_kept":72,"cut":false,"hidden":false,"merged":[[13,7,13,9],[36,2,36,4],[63,4,63,5],[53,4,53,5],[55,4,55,5],[57,4,57,5],[59,4,59,5],[61,4,61,5],[20,1,20,5],[18,1,18,6],[19,1,19,5],[54,2,54,5],[41,2,41,5],[26,3,26,5],[30,3,30,7],[28,3,28,8],[47,6,47,7],[43,4,43,5],[24,3,24,7],[20,7,20,8],[33,1,33,9],[34,2,34,4],[35,2,35,4],[44,9,50,9],[48,4,48,5],[48,6,48,7],[49,4,49,5],[49,6,49,7],[51,2,51,8],[3,0,3,13],[15,7,15,9],[7,7,7,9],[8,7,8,9],[9,7,9,9],[10,7,10,9],[11,7,11,9],[12,7,12,9],[11,3,12,3],[15,4,15,6],[37,2,37,4],[38,2,38,4],[39,2,39,4],[40,2,40,4],[41,7,41,8],[66,2,67,9],[0,0,0,10],[71,0,71,10],[44,4,44,5],[42,1,42,9],[45,4,45,5],[46,4,46,5],[50,4,50,5],[44,6,44,7],[45,6,45,7],[46,6,46,7],[50,6,50,7],[43,6,43,7],[47,4,47,5],[2,1,2,8],[5,1,5,4]]}
["LA COMPILAZIONE DEI DATI DI QUESTA FATTURA DEVE AVVENIRE NEL FOGLIO INSERIMENTO. QUESTAPAGINA SARA' COMPILATA IN AUTOMATICO"]
[]
[null,{"$f":"IF(LEN(Inserimento!D25)=0,\"Tipo Documento\",Inserimento!D25)","v":"Fattura"}]
[{"$f":"IF(Inserimento!G15=\"\",\"ATTENZIONE IPA MANCANTE, LA FATTURA SARA' SCARTATA DA SDI\",IF(AND(IF(ISERROR(FIND(\"INPS\",$H$8,1)>0),IF(ISERROR(FIND(\"I.N.P.S.\",$H$8,1)>0),0,1),1),$H$16=\"\"),\"ATTENZIONE RIFERIMENTO AMMINISTRAZIONE INPS MANCANTE, LA FATTURA SARA' RIFIUTATA DALL'INPS\",\"\"))","v":"ATTENZIONE IPA MANCANTE, LA FATTURA SARA' SCARTATA DA SDI"}]
[null,null,null,null,null,null,null,null,null,"CLIENTE"]
[null,{"$f":"IF(LEN(Inserimento!D6&\" \"&Inserimento!D8 & \" \" & Inserimento!D7)=2,\"Nome e Cognome\",Inserimento!D6&\" \"&Inserimento!D8 & \" \" & Inserimento!D7)","v":"Nome e Cognome"}]
[null,{"$f":"IF(LEN(Inserimento!D10)=0,\"Indirizzo\",Inserimento!D10&\", \"&Inserimento!D11)","v":"Indirizzo"}]
[null,{"$f":"IF(LEN(Inserimento!D12)=0,\"Città\",Inserimento!D13 & \" \" & Inserimento!D12 &\" (\"&Inserimento!D14&\")\")","v":"Città"},null,null,null,null,null,{"$f":"IF(LEN(Inserimento!G6)=0,\"Destinatario PA\",Inserimento!G6)","v":"Destinatario PA"}]
[null,{"$f":"IF(Inserimento!B17=\"\",\"\",IF(LEN(Inserimento!D17)=0,\"C.F.\",\"C.F. : \"&Inserimento!D17))","v":"C.F."},null,null,null,null,null,{"$f":"IF(LEN(Inserimento!G7)=0,\"Indirizzo\",Inserimento!G7&\", \"&Inserimento!G8)","v":"Indirizzo"}]
[null,{"$f":"IF(LEN(Inserimento!D18)=0,\"P.IVA\",\"P. IVA : \"&Inserimento!D18)","v":"P.IVA"},null,null,null,null,null,{"$f":"IF(LEN(Inserimento!G10)=0,\"Città\",Inserimento!G10 & \" \" & Inserimento!G9 &\" (\"&Inserimento!G11&\")\")","v":"Città"}]
[null,{"$f":"IF(Inserimento!B15=\"\",\"\",IF(LEN(Inserimento!D15)=0,\"email PEC Personale\",Inserimento!D15))","v":"email PEC Personale"},null,null,null,null,null,{"$f":"IF(Inserimento!G12=\"\",\"\",IF(LEN(Inserimento!G12)=0,\"P.IVA\",\"P. IVA : \"&Inserimento!G12))","v":""}]
[null,{"$f":"IF(Inserimento!B16=\"\",\"\",IF(LEN(Inserimento!D16)=0,\"Sito Web\",Inserimento!D16))","v":""},null,null,null,null,null,{"$f":"IF(LEN(Inserimento!G13)=0,\"C.F.\",\"C.F. : \"&Inserimento!G13)","v":"C.F."}]
[null,null,null,null,null,null,null,{"$f":"IF(LEN(Inserimento!G15)=6,\"IPA:  \"&Inserimento!G15,\"Codice Destinatario:  \"&IF(LEN(Inserimento!G15)=0,\"0000000\",Inserimento!G15))","v":"Codice Destinatario:  0000000"}]
[null,null,null,null,null,null,null,{"$f":"IF(Inserimento!G16<>\"\",\"PEC per FE: \"&Inserimento!G16,\"\")","v":""}]
[null,{"$f":"\"Numero \"&B3","v":"Numero Fattura"},null,{"$f":"IF(LEN(Inserimento!D29)=0,\"\",Inserimento!D29)","v":""}]
[null,{"$f":"\"Data \"&B3","v":"Data Fattura"},null,{"$f":"IF(LEN(Inserimento!D27)=0,\"\",Inserimento!D27)","v":""},{"$f":"IF(UPPER(Inserimento!E21)=\"X\",\"Rif. Amministrazione\",\"\")","v":""},null,null,{"$f":"IF(LEN(Inserimento!F21)=0,\"\",\"\"&Inserimento!F21)","v":""}]
[]
[]
[null,{"$f":"IF(LEN(Inserimento!D35)=0,\"\",\"Riferimento \"&Inserimento!D35&\"  \"&IF(LEN(Inserimento!D36)=0,\"\",Inserimento!D36&\" del \"&IF(LEN(Inserimento!D37)=0,\"\",DAY(Inserimento!D37)&\"-\"&MONTH(Inserimento!D37)&\"-\"&YEAR(Inserimento!D37))))","v":""}]
[null,{"$f":"IF(Inserimento!D38=\"\",\"\",\"Codice CIG: \"&Inserimento!D38)","v":""}]
[null,{"$f":"IF(Inserimento!D39=\"\",\"\",\"Codice CUP: \"&Inserimento!D39)","v":""}]
[]
[]
[]
[null,"Modalità di Pagamento",null,{"$f":"IF(LEN(Inserimento!G28)=0,\"-\",Inserimento!G28)","v":"-"}]
[]
[null,{"$f":"\"Scadenza \"&B3","v":"Scadenza Fattura"},null,{"$f":"IF(LEN(Inserimento!G30)=0,\"-\",DAY(Inserimento!G30)&\"-\"&MONTH(Inserimento!G30)&\"-\"&YEAR(Inserimento!G30))","v":"-"}]
[]
[null,"Banca di Appoggio",null,{"$f":"IF(LEN(Inserimento!G32)=0,\"-\",Inserimento!G32)","v":"-"}]
[]
[null,"IBAN",null,{"$f":"IF(LEN(Inserimento!G34)=0,\"-\",Inserimento!G34)","v":"-"}]
[]
[]
[null,{"$f":"IF(ISERROR(FIND(\"/\",Inserimento!V1,1)>0),\"\",\"ATTENZIONE NEL CORPO SONO PRESENTI CARATTERI PROIBITI DA SDI, COME AD ESEMPIO '/'. POTREBBERO ESSERE MOTIVO DI SCARTO.\")","v":""}]
[null,"Riga","Descrizione Attività",null,null,"Quantità","UdM","Prezzo Unitario","Imponibile","IVA %"]
[null,{"$f":"IF(Inserimento!N9<>0,1,\"\")","v":""},{"$f":"IF(Inserimento!J9<>\"\",Inserimento!J9,\"\")","v":""},null,null,{"$f":"IF(B36<>\"\",Inserimento!K9,\"\")","v":""},{"$f":"IF(B36<>\"\",Inserimento!L9,\"\")","v":""},{"$f":"IF(B36<>\"\",Inserimento!M9,\"\")","v":""},{"$f":"IF(ISERROR(F36*H36),\"\",F36*H36)","v":""},{"$f":"IF(B36<>\"\",Inserimento!O9,\"\")","v":""}]
[null,{"$f":"IF(Inserimento!N13<>0,2,\"\")","v":""},{"$f":"IF(Inserimento!J13<>\"\",Inserimento!J13,\"\")","v":""},null,null,{"$f":"IF(B37<>\"\",Inserimento!K13,\"\")","v":""},{"$f":"IF(B37<>\"\",Inserimento!L13,\"\")","v":""},{"$f":"IF(B37<>\"\",Inserimento!M13,\"\")","v":""},"",{"$f":"IF(B37<>\"\",Inserimento!O13,\"\")","v":""}]
[null,{"$f":"IF(Inserimento!N17<>0,3,\"\")","v":""},{"$f":"IF(Inserimento!J17<>\"\",Inserimento!J17,\"\")","v":""},null,null,{"$f":"IF(B38<>\"\",Inserimento!K17,\"\")","v":""},{"$f":"IF(B38<>\"\",Inserimento!L17,\"\")","v":""},{"$f":"IF(B38<>\"\",Inserimento!M17,\"\")","v":""},"",{"$f":"IF(B38<>\"\",Inserimento!O17,\"\")","v":""}]
[null,{"$f":"IF(Inserimento!N21<>0,4,\"\")","v":""},{"$f":"IF(Inserimento!J21<>\"\",Inserimento!J21,\"\")","v":""},null,null,{"$f":"IF(B39<>\"\",Inserimento!K21,\"\")","v":""},{"$f":"IF(B39<>\"\",Inserimento!L21,\"\")","v":""},{"$f":"IF(B39<>\"\",Inserimento!M21,\"\")","v":""},"",{"$f":"IF(B39<>\"\",Inserimento!O21,\"\")","v":""}]
[null,{"$f":"IF(Inserimento!N25<>0,4,\"\")","v":""},{"$f":"IF(Inserimento!J25<>\"\",Inserimento!J25,\"\")","v":""},null,null,{"$f":"IF(B40<>\"\",Inserimento!K25,\"\")","v":""},{"$f":"IF(B40<>\"\",Inserimento!L25,\"\")","v":""},{"$f":"IF(B40<>\"\",Inserimento!M25,\"\")","v":""},"",{"$f":"IF(B40<>\"\",Inserimento!O25,\"\")","v":""}]
[null,{"$f":"IF(Inserimento!N29<>0,4,\"\")","v":""},{"$f":"IF(Inserimento!J29<>\"\",Inserimento!J29,\"\")","v":""},null,null,{"$f":"IF(B41<>\"\",Inserimento!K29,\"\")","v":""},{"$f":"IF(B41<>\"\",Inserimento!L29,\"\")","v":""},{"$f":"IF(B41<>\"\",Inserimento!M29,\"\")","v":""},"",{"$f":"IF(B41<>\"\",Inserimento!O29,\"\")","v":""}]
[]
[null,"Riepilogo IVA "]
[null,{"$f":"IF(Inserimento!L55>0,1,\"\")","v":""},"Imponibile","Aliquota %","Importo IVA",null,"Natura",null,"Riferimento Normativo","Esigibilità IVA"]
[null,null,{"$f":"IF(Calc_Sht!AC38<>\"Totale complessivo\",IF(Calc_Sht!AE38<>0,Calc_Sht!AE38,\"\"),\"\")","v":""},{"$f":"IF(ISERROR(VLOOKUP(C45,Calc_Sht!$AE$38:'Calc_Sht'!$AF$64,2,0)),\"\",IF(C45<>0,VLOOKUP(C45,Calc_Sht!$AE$38:'Calc_Sht'!$AF$64,2,0),\"\"))","v":""},{"$f":"IF(ISERROR(IF(D45<>\"\",IF(VLOOKUP(D45,Calc_Sht!$J$36:'Calc_Sht'!$P$41,7,0)<>0,VLOOKUP(D45,Calc_Sht!$J$36:'Calc_Sht'!$P$41,7,0),0),\"\")),\"\",IF(D45<>\"\",IF(VLOOKUP(D45,Calc_Sht!$J$36:'Calc_Sht'!$P$41,7,0)<>0,SUMIF(Calc_Sht!$J$36:'Calc_Sht'!$J$41,D45,Calc_Sht!$P$36:'Calc_Sht'!$P$41),0),\"\"))","v":""},null,{"$f":"IF(OR(D45<>0,C45=0),\"\",IF(ISERROR(VLOOKUP(C45,Calc_Sht!$AE$38:'Calc_Sht'!$AG$64,3,0)),\"\",VLOOKUP(C45,Calc_Sht!$AE$38:'Calc_Sht'!$AG$64,3,0)))","v":""},null,{"$f":"IF(ISERROR(VLOOKUP(G45,Calc_Sht!$Z$40:'Calc_Sht'!$AA$60,2,0)),\"\",VLOOKUP(G45,Calc_Sht!$Z$40:'Calc_Sht'!$AA$60,2,0))","v":""},{"$f":"IF(Inserimento!G18<>\"\",Inserimento!G18,\"\")","v":""}]
[null,null,{"$f":"IF(Calc_Sht!AC39<>\"Totale complessivo\",IF(Calc_Sht!AE39<>0,Calc_Sht!AE39,\"\"),\"\")","v":""},{"$f":"IF(ISERROR(VLOOKUP(C46,Calc_Sht!$AE$38:'Calc_Sht'!$AF$64,2,0)),\"\",IF(C46<>0,VLOOKUP(C46,Calc_Sht!$AE$38:'Calc_Sht'!$AF$64,2,0),\"\"))","v":""},{"$f":"IF(ISERROR(IF(D46<>\"\",IF(VLOOKUP(D46,Calc_Sht!$J$36:'Calc_Sht'!$P$41,7,0)<>0,VLOOKUP(D46,Calc_Sht!$J$36:'Calc_Sht'!$P$41,7,0),0),\"\")),\"\",IF(D46<>\"\",IF(VLOOKUP(D46,Calc_Sht!$J$36:'Calc_Sht'!$P$41,7,0)<>0,SUMIF(Calc_Sht!$J$36:'Calc_Sht'!$J$41,D46,Calc_Sht!$P$36:'Calc_Sht'!$P$41),0),\"\"))","v":""},null,{"$f":"IF(OR(D46<>0,C46=0),\"\",IF(ISERROR(VLOOKUP(C46,Calc_Sht!$AE$38:'Calc_Sht'!$AG$64,3,0)),\"\",VLOOKUP(C46,Calc_Sht!$AE$38:'Calc_Sht'!$AG$64,3,0)))","v":""},null,{"$f":"IF(ISERROR(VLOOKUP(G46,Calc_Sht!$Z$40:'Calc_Sht'!$AA$60,2,0)),\"\",VLOOKUP(G46,Calc_Sht!$Z$40:'Calc_Sht'!$AA$60,2,0))","v":""}]
[null,null,{"$f":"IF(Calc_Sht!AC40<>\"Totale complessivo\",IF(Calc_Sht!AE40<>0,Calc_Sht!AE40,\"\"),\"\")","v":""},{"$f":"IF(ISERROR(VLOOKUP(C47,Calc_Sht!$AE$38:'Calc_Sht'!$AF$64,2,0)),\"\",IF(C47<>0,VLOOKUP(C47,Calc_Sht!$AE$38:'Calc_Sht'!$AF$64,2,0),\"\"))","v":""},{"$f":"IF(ISERROR(IF(D47<>\"\",IF(VLOOKUP(D47,Calc_Sht!$J$36:'Calc_Sht'!$P$41,7,0)<>0,VLOOKUP(D47,Calc_Sht!$J$36:'Calc_Sht'!$P$41,7,0),0),\"\")),\"\",IF(D47<>\"\",IF(VLOOKUP(D47,Calc_Sht!$J$36:'Calc_Sht'!$P$41,7,0)<>0,SUMIF(Calc_Sht!$J$36:'Calc_Sht'!$J$41,D47,Calc_Sht!$P$36:'Calc_Sht'!$P$41),0),\"\"))","v":""},null,{"$f":"IF(OR(D47<>0,C47=0),\"\",IF(ISERROR(VLOOKUP(C47,Calc_Sht!$AE$38:'Calc_Sht'!$AG$64,3,0)),\"\",VLOOKUP(C47,Calc_Sht!$AE$38:'Calc_Sht'!$AG$64,3,0)))","v":""},null,{"$f":"IF(ISERROR(VLOOKUP(G47,Calc_Sht!$Z$40:'Calc_Sht'!$AA$60,2,0)),\"\",VLOOKUP(G47,Calc_Sht!$Z$40:'Calc_Sht'!$AA$60,2,0))","v":""}]
[null,null,{"$f":"IF(Calc_Sht!AC41<>\"Totale complessivo\",IF(Calc_Sht!AE41<>0,Calc_Sht!AE41,\"\"),\"\")","v":""},{"$f":"IF(ISERROR(VLOOKUP(C48,Calc_Sht!$AE$38:'Calc_Sht'!$AF$64,2,0)),\"\",IF(C48<>0,VLOOKUP(C48,Calc_Sht!$AE$38:'Calc_Sht'!$AF$64,2,0),\"\"))","v":""},{"$f":"IF(ISERROR(IF(D48<>\"\",IF(VLOOKUP(D48,Calc_Sht!$J$36:'Calc_Sht'!$P$41,7,0)<>0,VLOOKUP(D48,Calc_Sht!$J$36:'Calc_Sht'!$P$41,7,0),0),\"\")),\"\",IF(D48<>\"\",IF(VLOOKUP(D48,Calc_Sht!$J$36:'Calc_Sht'!$P$41,7,0)<>0,SUMIF(Calc_Sht!$J$36:'Calc_Sht'!$J$41,D48,Calc_Sht!$P$36:'Calc_Sht'!$P$41),0),\"\"))","v":""},null,{"$f":"IF(OR(D48<>0,C48=0),\"\",IF(ISERROR(VLOOKUP(C48,Calc_Sht!$AE$38:'Calc_Sht'!$AG$64,3,0)),\"\",VLOOKUP(C48,Calc_Sht!$AE$38:'Calc_Sht'!$AG$64,3,0)))","v":""},null,{"$f":"IF(ISERROR(VLOOKUP(G48,Calc_Sht!$Z$40:'Calc_Sht'!$AA$60,2,0)),\"\",VLOOKUP(G48,Calc_Sht!$Z$40:'Calc_Sht'!$AA$60,2,0))","v":""}]
[null,null,{"$f":"IF(Calc_Sht!AC42<>\"Totale complessivo\",IF(Calc_Sht!AE42<>0,Calc_Sht!AE42,\"\"),\"\")","v":""},{"$f":"IF(ISERROR(VLOOKUP(C49,Calc_Sht!$AE$38:'Calc_Sht'!$AF$64,2,0)),\"\",IF(C49<>0,VLOOKUP(C49,Calc_Sht!$AE$38:'Calc_Sht'!$AF$64,2,0),\"\"))","v":""},{"$f":"IF(ISERROR(IF(D49<>\"\",IF(VLOOKUP(D49,Calc_Sht!$J$36:'Calc_Sht'!$P$41,7,0)<>0,VLOOKUP(D49,Calc_Sht!$J$36:'Calc_Sht'!$P$41,7,0),0),\"\")),\"\",IF(D49<>\"\",IF(VLOOKUP(D49,Calc_Sht!$J$36:'Calc_Sht'!$P$41,7,0)<>0,SUMIF(Calc_Sht!$J$36:'Calc_Sht'!$J$41,D49,Calc_Sht!$P$36:'Calc_Sht'!$P$41),0),\"\"))","v":""},null,{"$f":"IF(OR(D49<>0,C49=0),\"\",IF(ISERROR(VLOOKUP(C49,Calc_Sht!$AE$38:'Calc_Sht'!$AG$64,3,0)),\"\",VLOOKUP(C49,Calc_Sht!$AE$38:'Calc_Sht'!$AG$64,3,0)))","v":""},null,{"$f":"IF(ISERROR(VLOOKUP(G49,Calc_Sht!$Z$40:'Calc_Sht'!$AA$60,2,0)),\"\",VLOOKUP(G49,Calc_Sht!$Z$40:'Calc_Sht'!$AA$60,2,0))","v":""}]
[null,null,{"$f":"IF(Calc_Sht!AC43<>\"Totale complessivo\",IF(Calc_Sht!AE43<>0,Calc_Sht!AE43,\"\"),\"\")","v":""},{"$f":"IF(ISERROR(VLOOKUP(C50,Calc_Sht!$AE$38:'Calc_Sht'!$AF$64,2,0)),\"\",IF(C50<>0,VLOOKUP(C50,Calc_Sht!$AE$38:'Calc_Sht'!$AF$64,2,0),\"\"))","v":""},{"$f":"IF(ISERROR(IF(D50<>\"\",IF(VLOOKUP(D50,Calc_Sht!$J$36:'Calc_Sht'!$P$41,7,0)<>0,VLOOKUP(D50,Calc_Sht!$J$36:'Calc_Sht'!$P$41,7,0),0),\"\")),\"\",IF(D50<>\"\",IF(VLOOKUP(D50,Calc_Sht!$J$36:'Calc_Sht'!$P$41,7,0)<>0,SUMIF(Calc_Sht!$J$36:'Calc_Sht'!$J$41,D50,Calc_Sht!$P$36:'Calc_Sht'!$P$41),0),\"\"))","v":""},null,{"$f":"IF(OR(D50<>0,C50=0),\"\",IF(ISERROR(VLOOKUP(C50,Calc_Sht!$AE$38:'Calc_Sht'!$AG$64,3,0)),\"\",VLOOKUP(C50,Calc_Sht!$AE$38:'Calc_Sht'!$AG$64,3,0)))","v":""},null,{"$f":"IF(ISERROR(VLOOKUP(G50,Calc_Sht!$Z$40:'Calc_Sht'!$AA$60,2,0)),\"\",VLOOKUP(G50,Calc_Sht!$Z$40:'Calc_Sht'!$AA$60,2,0))","v":""}]
[null,null,{"$f":"IF(Calc_Sht!AC44<>\"Totale complessivo\",IF(Calc_Sht!AE44<>0,Calc_Sht!AE44,\"\"),\"\")","v":""},{"$f":"IF(ISERROR(VLOOKUP(C51,Calc_Sht!$AE$38:'Calc_Sht'!$AF$64,2,0)),\"\",IF(C51<>0,VLOOKUP(C51,Calc_Sht!$AE$38:'Calc_Sht'!$AF$64,2,0),\"\"))","v":""},{"$f":"IF(ISERROR(IF(D51<>\"\",IF(VLOOKUP(D51,Calc_Sht!$J$36:'Calc_Sht'!$P$41,7,0)<>0,VLOOKUP(D51,Calc_Sht!$J$36:'Calc_Sht'!$P$41,7,0),0),\"\")),\"\",IF(D51<>\"\",IF(VLOOKUP(D51,Calc_Sht!$J$36:'Calc_Sht'!$P$41,7,0)<>0,SUMIF(Calc_Sht!$J$36:'Calc_Sht'!$J$41,D51,Calc_Sht!$P$36:'Calc_Sht'!$P$41),0),\"\"))","v":""},null,{"$f":"IF(OR(D51<>0,C51=0),\"\",IF(ISERROR(VLOOKUP(C51,Calc_Sht!$AE$38:'Calc_Sht'!$AG$64,3,0)),\"\",VLOOKUP(C51,Calc_Sht!$AE$38:'Calc_Sht'!$AG$64,3,0)))","v":""},null,{"$f":"IF(ISERROR(VLOOKUP(G51,Calc_Sht!$Z$40:'Calc_Sht'!$AA$60,2,0)),\"\",VLOOKUP(G51,Calc_Sht!$Z$40:'Calc_Sht'!$AA$60,2,0))","v":""}]
[null,null,{"$f":"IF(OR(SUM(E45:E51)<>E58,SUM(C45:C51)<>E56),\"ATTENZIONE, CON MACRO DISATTIVATE ANDARE SU MENU DATI E PREMERE AGGIORNA TUTTI!!\",\"\")","v":""}]
[]
[null,null,{"$f":"IF(Inserimento!$D$19<>\"SI\",\"Totale Cassa Previdenziale\",\"Contributo INPS 4% L.335/95\")","v":"Totale Cassa Previdenziale"},null,{"$f":"SUMPRODUCT(I36:I41,Calc_Sht!T36:'Calc_Sht'!T41)/100*IF(Inserimento!$D$19=\"NO\",Inserimento!$D$21,4)","v":0}]
[]
[null,null,"Totale Servizi/Rimborsi",null,{"$f":"SUM(I36:I41,E54)","v":0}]
[]
[null,null,"IVA",null,{"$f":"SUM(Calc_Sht!P36:P41)","v":0}]
[]
[null,null,{"$f":"\"Totale \"&B3","v":"Totale Fattura"},null,{"$f":"E58+E56","v":0}]
[]
[null,null,"Ritenuta di Acconto",null,{"$f":"IF(Inserimento!D19=\"NO\",SUMPRODUCT(I36:I41,Calc_Sht!M36:'Calc_Sht'!M41)/100,SUMPRODUCT(Calc_Sht!Y36:Y42,Calc_Sht!M36:'Calc_Sht'!M41)/100)","v":0}]
[]
[null,null,"Totale da Pagare",null,{"$f":"E60-E62-IF(J45=\"Split Payment\",E58,0)","v":0}]
[]
[null,null,"causale o note"]
[null,null,{"$f":"IF(Inserimento!D42=\"\",\"\",Inserimento!D42)","v":""}]
[]
[]
[null,null,{"$f":"IF(AND(E60>77.47,E58=0),\"Imposta di bollo in assolvimento ai sensi del D.M. del 17/06/2014. Cod. Bollo:  DM-17-GIU-2014\",\"\")","v":""}]
[]
["ATTENZIONE LA CORRETTEZZA DEI DATI E' RESPONSABILITA DEL COMPILATORE - LE FORMULE POTREBBERO NON CONSIDERARE TUTTE LE CASISTICHE"]

{"sheet":"Calc_Sht","index":3,"n_rows":65,"n_cols":33,"rows_kept":65,"cut":false,"hidden":true,"merged":[[21,7,21,8],[18,4,18,5],[18,7,18,9],[19,4,19,5],[19,7,19,9],[20,4,20,5],[20,7,20,8],[8,7,8,9],[0,0,0,10],[2,1,2,8],[3,0,3,13],[4,1,4,4],[7,7,7,9],[9,7,9,9],[10,7,10,9],[11,7,11,9],[40,2,40,4],[34,2,34,4],[35,2,35,4],[36,2,36,4],[37,2,37,4],[38,2,38,4],[39,2,39,4],[12,7,12,9],[15,7,15,9],[26,4,26,6],[28,4,28,9],[30,4,30,8],[24,4,24,8]]}
[]
[]
[]
[]
[]
[]
[]
[]
[]
[]
[]
[]
[]
[]
[]
[]
[]
[]
[]
[]
[]
[]
[]
[]
[]
[]
[]
[]
[]
[]
[]
[]
[]
[null,null,null,null,null,null,null,null,null,null,null,null,null,"Imponibile Cassa",null,"IVA tot",null,null,null,null,"IVA Cassa",null,null,null,null,null,null,null,"D","(Tutto)"]
[null,"Riga","Descrizione Attività",null,null,"Quantità","UdM","Prezzo Unitario","Imponibile","IVA",null,"b","c","d","Imponibile","IVA","Natura","Rif. Normativo",null,null,null,null,null,"A","B","C","D"]
[null,{"$f":"IF(Inserimento!N9<>0,1,\"\")","v":""},{"$f":"IF(Inserimento!J9<>\"\",Inserimento!J9,\"\")","v":""},null,null,{"$f":"IF(B36<>\"\",Inserimento!K9,\"\")","v":""},{"$f":"IF(B36<>\"\",Inserimento!L9,\"\")","v":""},{"$f":"IF(B36<>\"\",Inserimento!M9,\"\")","v":""},{"$f":"IF(ISERROR(F36*H36),\"\",F36*H36)","v":""},{"$f":"IF(B36<>\"\",Inserimento!O9,\"\")","v":""},null,{"$f":"(1+Inserimento!$D$21/100)*T36","v":0},{"$f":"Inserimento!S9","v":0},{"$f":"IF(I36<>\"\",I36*T36*IF(Inserimento!$D$19=\"NO\",Inserimento!$D$21/100,0.04),\"\")","v":""},{"$f":"I36","v":""},{"$f":"IF(J36<>\"\",J36*I36/100+U36,0)","v":0},{"$f":"IF(LEN(Inserimento!P9)=0,\"\",Inserimento!P9)","v":""},{"$f":"IF(LEN(Inserimento!Q9)=0,\"\",Inserimento!Q9)","v":""},{"$f":"J36&T36","v":"0"},{"$f":"IF(Inserimento!R9=\"SI\",1,0)","v":0},{"$f":"IF(J36<>\"\",I36*T36*J36*IF(Inserimento!$D$19=\"NO\",Inserimento!$D$21,4)/10000,\"\")","v":""},{"$f":"IF(Q36<>\"\",I36,0)","v":0},null,22,{"$f":"SUMIF(J36:$J$41,X36,I36:$I$41)+SUMIF($J$36:$J$41,X36,$N$36:$N$41)","v":0},{"$f":"IF(Y36=0,\"X\",\"\")","v":"X"},null,null,"Somma di B"]
[null,{"$f":"IF(Inserimento!N13<>0,2,\"\")","v":""},{"$f":"IF(Inserimento!J13<>\"\",Inserimento!J13,\"\")","v":""},null,null,{"$f":"IF(B37<>\"\",Inserimento!K13,\"\")","v":""},{"$f":"IF(B37<>\"\",Inserimento!L13,\"\")","v":""},{"$f":"IF(B37<>\"\",Inserimento!M13,\"\")","v":""},"",{"$f":"IF(B37<>\"\",Inserimento!O13,\"\")","v":""},null,{"$f":"(1+Inserimento!$D$21/100)*T37","v":0},{"$f":"Inserimento!S13","v":0},{"$f":"IF(I37<>\"\",I37*T37*IF(Inserimento!$D$19=\"NO\",Inserimento!$D$21/100,0.04),\"\")","v":""},{"$f":"I37","v":""},{"$f":"IF(J37<>\"\",J37*I37/100+U37,0)","v":0},{"$f":"IF(LEN(Inserimento!P13)=0,\"\",Inserimento!P13)","v":""},{"$f":"IF(LEN(Inserimento!Q13)=0,\"\",Inserimento!Q13)","v":""},{"$f":"J37&T37","v":"0"},{"$f":"IF(Inserimento!R13=\"SI\",1,0)","v":0},{"$f":"IF(J37<>\"\",I37*T37*J37*IF(Inserimento!$D$19=\"NO\",Inserimento!$D$21,4)/10000,\"\")","v":""},{"$f":"IF(Q37<>\"\",I37,0)","v":0},null,10,{"$f":"SUMIF(J36:$J$41,X37,I36:$I$41)+SUMIF($J$36:$J$41,X37,$N$36:$N$41)","v":0},{"$f":"IF(Y37=0,\"X\",\"\")","v":"X"},null,null,"A","C","Totale"]
[null,{"$f":"IF(Inserimento!N17<>0,3,\"\")","v":""},{"$f":"IF(Inserimento!J17<>\"\",Inserimento!J17,\"\")","v":""},null,null,{"$f":"IF(B38<>\"\",Inserimento!K17,\"\")","v":""},{"$f":"IF(B38<>\"\",Inserimento!L17,\"\")","v":""},{"$f":"IF(B38<>\"\",Inserimento!M17,\"\")","v":""},"",{"$f":"IF(B38<>\"\",Inserimento!O17,\"\")","v":""},null,{"$f":"(1+Inserimento!$D$21/100)*T38","v":0},{"$f":"Inserimento!S17","v":0},{"$f":"IF(I38<>\"\",I38*T38*IF(Inserimento!$D$19=\"NO\",Inserimento!$D$21/100,0.04),\"\")","v":""},{"$f":"I38","v":""},{"$f":"IF(J38<>\"\",J38*I38/100+U38,0)","v":0},{"$f":"IF(LEN(Inserimento!P17)=0,\"\",Inserimento!P17)","v":""},{"$f":"IF(LEN(Inserimento!Q17)=0,\"\",Inserimento!Q17)","v":""},{"$f":"J38&T38","v":"0"},{"$f":"IF(Inserimento!R17=\"SI\",1,0)","v":0},{"$f":"IF(J38<>\"\",I38*T38*J38*IF(Inserimento!$D$19=\"NO\",Inserimento!$D$21,4)/10000,\"\")","v":""},{"$f":"IF(Q38<>\"\",I38,0)","v":0},null,4,{"$f":"SUMIF(J36:$J$41,X38,I36:$I$41)+SUMIF($J$36:$J$41,X38,$N$36:$N$41)","v":0},{"$f":"IF(Y38=0,\"X\",\"\")","v":"X"},null,null,"(vuoto)","(vuoto)",null,{"$f":"IF(AC38=\"\",AC37,AC38)","v":"(vuoto)"},{"$f":"IF(AE38>0,AD38,0)","v":0}]
[null,{"$f":"IF(Inserimento!N21<>0,4,\"\")","v":""},{"$f":"IF(Inserimento!J21<>\"\",Inserimento!J21,\"\")","v":""},null,null,{"$f":"IF(B39<>\"\",Inserimento!K21,\"\")","v":""},{"$f":"IF(B39<>\"\",Inserimento!L21,\"\")","v":""},{"$f":"IF(B39<>\"\",Inserimento!M21,\"\")","v":""},"",{"$f":"IF(B39<>\"\",Inserimento!O21,\"\")","v":""},null,{"$f":"(1+Inserimento!$D$21/100)*T39","v":0},{"$f":"Inserimento!S21","v":0},{"$f":"IF(I39<>\"\",I39*T39*IF(Inserimento!$D$19=\"NO\",Inserimento!$D$21/100,0.04),\"\")","v":""},{"$f":"I39","v":""},{"$f":"IF(J39<>\"\",J39*I39/100+U39,0)","v":0},{"$f":"IF(LEN(Inserimento!P21)=0,\"\",Inserimento!P21)","v":""},{"$f":"IF(LEN(Inserimento!Q21)=0,\"\",Inserimento!Q21)","v":""},{"$f":"J39&T39","v":"0"},{"$f":"IF(Inserimento!R21=\"SI\",1,0)","v":0},{"$f":"IF(J39<>\"\",I39*T39*J39*IF(Inserimento!$D$19=\"NO\",Inserimento!$D$21,4)/10000,\"\")","v":""},{"$f":"IF(Q39<>\"\",I39,0)","v":0},null,5,{"$f":"SUMIF(J37:$J$41,X39,I37:$I$41)+SUMIF($J$36:$J$41,X39,$N$36:$N$41)","v":0},{"$f":"IF(Y39=0,\"X\",\"\")","v":"X"},null,null,0,"N6.5  inversione contabile - cessione di cellulari",0,{"$f":"IF(AC39=\"\",AC38,AC39)","v":0},0]
[null,{"$f":"IF(Inserimento!N25<>0,4,\"\")","v":""},{"$f":"IF(Inserimento!J25<>\"\",Inserimento!J25,\"\")","v":""},null,null,{"$f":"IF(B40<>\"\",Inserimento!K25,\"\")","v":""},{"$f":"IF(B40<>\"\",Inserimento!L25,\"\")","v":""},{"$f":"IF(B40<>\"\",Inserimento!M25,\"\")","v":""},"",{"$f":"IF(B40<>\"\",Inserimento!O25,\"\")","v":""},null,{"$f":"(1+Inserimento!$D$21/100)*T40","v":0},{"$f":"Inserimento!S25","v":0},{"$f":"IF(I40<>\"\",I40*T40*IF(Inserimento!$D$19=\"NO\",Inserimento!$D$21/100,0.04),\"\")","v":""},{"$f":"I40","v":""},{"$f":"IF(J40<>\"\",J40*I40/100+U40,0)","v":0},{"$f":"IF(LEN(Inserimento!P25)=0,\"\",Inserimento!P25)","v":""},{"$f":"IF(LEN(Inserimento!Q25)=0,\"\",Inserimento!Q22)","v":""},{"$f":"J40&T40","v":"0"},{"$f":"IF(Inserimento!R25=\"SI\",1,0)","v":0},{"$f":"IF(J40<>\"\",I40*T40*J40*IF(Inserimento!$D$19=\"NO\",Inserimento!$D$21,4)/10000,\"\")","v":""},{"$f":"IF(Q40<>\"\",I40,0)","v":0},null,0,{"$f":"SUMIF($Q$36:$Q$41,Z40,$V$36:$V$41)+SUMIF(Q32:Q37,Z40,N32:N37)","v":0},"N1  escluse ex art. 15",{"$f":"IF(ISERROR(VLOOKUP(Z40,$Q$36:$R$41,2,0)),\"X\",(VLOOKUP(Z40,$Q$36:$R$41,2,0)))","v":"X"},null,null,"N6.1  inversione contabile - cessione di rottami",0,0,0]
[null,{"$f":"IF(Inserimento!N29<>0,4,\"\")","v":""},{"$f":"IF(Inserimento!J29<>\"\",Inserimento!J29,\"\")","v":""},null,null,{"$f":"IF(B41<>\"\",Inserimento!K29,\"\")","v":""},{"$f":"IF(B41<>\"\",Inserimento!L29,\"\")","v":""},{"$f":"IF(B41<>\"\",Inserimento!M29,\"\")","v":""},"",{"$f":"IF(B41<>\"\",Inserimento!O29,\"\")","v":""},null,{"$f":"(1+Inserimento!$D$21/100)*T41","v":0},{"$f":"Inserimento!S29","v":0},{"$f":"IF(I41<>\"\",I41*T41*IF(Inserimento!$D$19=\"NO\",Inserimento!$D$21/100,0.04),\"\")","v":""},"",0,{"$f":"IF(LEN(Inserimento!P29)=0,\"\",Inserimento!P29)","v":""},{"$f":"IF(LEN(Inserimento!Q29)=0,\"\",Inserimento!Q29)","v":""},"0",{"$f":"IF(Inserimento!R29=\"SI\",1,0)","v":0},{"$f":"IF(J41<>\"\",I41*T41*J41*IF(Inserimento!$D$19=\"NO\",Inserimento!$D$21,4)/10000,\"\")","v":""},0,null,0,0,"N2.1  non soggette ad IVA art 7","X",null,null,"N6.9  inversione contabile - altri casi",0,0,{"$f":"IF(AE41>0,AD41,0)","v":0}]
[null,null,null,null,null,null,null,null,null,null,null,null,null,null,null,null,null,null,null,null,null,null,null,0,0,"N2.2  non soggette - altri casi","X",null,null,"N2.1  non soggette ad IVA art 7",0,0,{"$f":"IF(AE42>0,AD42,0)","v":0}]
[null,null,null,null,null,null,null,null,null,null,null,null,null,null,null,null,null,null,null,null,null,null,null,0,0,"N3.1  non imponibili - esportazioni","X",null,null,"N6.3  inversione contabile - subappalto edile",0,0,0]
[null,null,null,null,null,null,null,null,null,null,null,null,null,null,null,null,null,null,null,null,null,null,null,0,0,"N3.2  non imponibili - cessioni intra","X",null,null,"N2.2  non soggette - altri casi",0,0,0]
[null,null,null,null,null,null,null,null,null,null,null,null,null,null,null,null,null,null,null,null,null,null,null,0,0,"N3.3  non imponibili - cessioni San Marino","X",null,null,"N6.7  inversione contabile - prestazioni edili",0,0,0]
[null,null,null,null,null,null,null,null,null,null,null,null,null,null,null,null,null,null,null,null,null,null,null,0,0,"N3.4  non imponibili - operazioni assimilate","X",null,null,"N3.1  non imponibili - esportazioni",0,{"$f":"IF(AC46=\"\",AC45,AC46)","v":0},0]
[null,null,null,null,null,null,null,null,null,null,null,null,null,null,null,null,null,null,null,null,null,null,null,0,0,"N3.5  non imponibili - post dich. d'intento","X",null,null,"N1  escluse ex art. 15",0,0,0]
[null,null,null,null,null,null,null,null,null,null,null,null,null,null,null,null,null,null,null,null,null,null,null,0,0,"N3.6  non imponibili - altre operazioni","X",null,null,"N3.2  non imponibili - cessioni intra",0,0,0]
[null,null,null,null,null,null,null,null,null,null,null,null,null,null,null,null,null,null,null,null,null,null,null,0,0,"N4  esenti","X",null,null,"N6.2  inversione contabile - cessione metalli preziosi",0,0,0]
[null,null,null,null,null,null,null,null,null,null,null,null,null,null,null,null,null,null,null,null,null,null,null,0,0,"N5  regime del margine / IVA non esposta","X",null,null,"N3.3  non imponibili - cessioni San Marino",0,0,0]
[null,null,null,null,null,null,null,null,null,null,null,null,null,null,null,null,null,null,null,null,null,null,null,0,0,"N6.1  inversione contabile - cessione di rottami","X",null,null,"N6.4  inversione contabile - cessione di fabbricati",0,0,0]
[null,null,null,null,null,null,null,null,null,null,null,null,null,null,null,null,null,null,null,null,null,null,null,0,0,"N6.2  inversione contabile - cessione metalli preziosi","X",null,null,"N3.4  non imponibili - operazioni assimilate",0,0,0]
[null,null,null,null,null,null,null,null,null,null,null,null,null,null,null,null,null,null,null,null,null,null,null,0,0,"N6.3  inversione contabile - subappalto edile","X",null,null,"N6.6  inversione contabile - cessione di prod elettr",0,0,0]
[null,null,null,null,null,null,null,null,null,null,null,null,null,null,null,null,null,null,null,null,null,null,null,0,0,"N6.4  inversione contabile - cessione di fabbricati","X",null,null,"N3.5  non imponibili - post dich. d'intento",0,0,0]
[null,null,null,null,null,null,null,null,null,null,null,null,null,null,null,null,null,null,null,null,null,null,null,0,0,"N6.5  inversione contabile - cessione di cellulari","X",null,null,"N6.8  inversione contabile - operazioni energetico",0,0,0]
[null,null,null,null,null,null,null,null,null,null,null,null,null,null,null,null,null,null,null,null,null,null,null,0,0,"N6.6  inversione contabile - cessione di prod elettr","X",null,null,"N3.6  non imponibili - altre operazioni",0,0,0]
[null,null,null,null,null,null,null,null,null,null,null,null,null,null,null,null,null,null,null,null,null,null,null,0,0,"N6.7  inversione contabile - prestazioni edili","X",null,null,"N7  IVA assolta in altro stato UE",0,0,0]
[null,null,null,null,null,null,null,null,null,null,null,null,null,null,null,null,null,null,null,null,null,null,null,0,0,"N6.8  inversione contabile - operazioni energetico","X",null,null,"N4  esenti",0,0,0]
[null,null,null,null,null,null,null,null,null,null,null,null,null,null,null,null,null,null,null,null,null,null,null,0,0,"N6.9  inversione contabile - altri casi","X",null,null,"N5  regime del margine / IVA non esposta",0,{"$f":"IF(AC59=\"\",AC58,AC59)","v":0},{"$f":"IF(AE59>0,AD59,0)","v":0}]
[null,null,null,null,null,null,null,null,null,null,null,null,null,null,null,null,null,null,null,null,null,null,null,0,0,"N7  IVA assolta in altro stato UE","X",null,"Totale complessivo",null,0,"Totale complessivo",0]
[null,null,null,null,null,null,null,null,null,null,null,null,null,null,null,null,null,null,null,null,null,null,null,null,null,null,null,null,null,null,null,"Totale complessivo",0]
[null,null,null,null,null,null,null,null,null,null,null,null,null,null,null,null,null,null,null,null,null,null,null,null,null,null,null,null,null,null,null,0,0]
[null,null,null,null,null,null,null,null,null,null,null,null,null,null,null,null,null,null,null,null,null,null,null,null,null,null,null,null,null,null,null,0,0]
[null,null,null,null,null,null,null,null,null,null,null,null,null,null,null,null,null,null,null,null,null,null,null,null,null,null,null,null,null,null,null,0,0]
[null,null,null,null,null,null,null,null,null,null,null,null,null,null,null,null,null,null,null,null,null,null,null,null,null,null,null,null,null,null,null,0,0]

{"sheet":"Stati della Fattura","index":4,"n_rows":17,"n_cols":4,"rows_kept":17,"cut":false,"hidden":false,"merged":[[16,1,16,2]]}
[]
[]
[null,"Icona Stato","Descrizione Stato","Possibile\nRe-Invio Stessa Fattura?"]
[null,null,"Fattura Impedita (Causa Dati o Canali)","NO"]
[null,null,"Formato XML-PA pronta da Firmare","NO"]
[null,null,"Fattura Duplicata (stesso numero)","NO"]
[null,null,"Pronta per la Consegna a SdI (SLA 24 h)","NO"]
[null,null,"Fattura Non Valida, rifiutata da SdI","SI"]
[null,null,"Notifica Mancata Consegna (SdI ritenta più volte)","NO"]
[null,null,"Fattura Consegnata alla PA","NO"]
[null,null,"Termini di Notifica Scaduti (15 gg)","NO"]
[null,null,"Fattura Accettata dalla PA (entro 15 gg)","NO"]
[null,null,"Fattura Rifiutata dalla PA (entro 15 gg)","SI"]
[]
[null,"·         Nel primo caso contattare il Supporto Digithera per capire il motivo del blocco."]
[null,"·         I 15 giorni partono dalla Data di Consegna."]
[null,"In caso di Fattura non Valida o Rifiutata dalla PA è possibile re-inviarla corretta e con la stessa numerazione di quella originale."]